[Event "2026 European Womens Championship"]
[Site "Batumi, GE"]
[Date "2026.05.26"]
[Round "2"]
[White "Radeva, Viktoria"]
[Black "Golsta, Madara"]
[Result "1-0"]
[Board "50"]
[TimeControl "5400+30"]
[WhiteFideId "2915405"]
[BlackFideId "11607386"]
[WhiteElo "2242"]
[BlackElo "2023"]
[WhiteTitle "WGM"]
[WhiteClock "0:08:28"]
[BlackClock "0:03:31"]
[Variant "Standard"]

1. e4 {[%clk 1:30:57]}  c5 {[%clk 1:30:51]} 2. Nf3 {[%clk 1:31:10]}  g6 {[%clk 1:31:05]} 3. d4 {[%clk 1:31:01]}  cxd4 {[%clk 1:31:26]}
4. Nxd4 {[%clk 1:31:26]}  Bg7 {[%clk 1:31:43]} 5. c4 {[%clk 1:31:46]}  Nc6 {[%clk 1:32:03]} 6. Be3 {[%clk 1:31:31]}  Qb6 {[%clk 1:32:20]}
7. Nb3 {[%clk 1:31:17]}  Qd8 {[%clk 1:32:26]} 8. Qd2 {[%clk 1:31:18]}  Nf6 {[%clk 1:32:26]} 9. Nc3 {[%clk 1:30:35]}  Ng4 {[%clk 1:30:25]}
10. Bf4 {[%clk 1:30:26]}  d6 {[%clk 1:22:01]} 11. h3 {[%clk 1:29:16]}  Nf6 {[%clk 1:21:54]} 12. Bh6 {[%clk 1:15:53]}  Bxh6 {[%clk 1:17:23]}
13. Qxh6 {[%clk 1:14:27]}  a5 {[%clk 1:16:30]} 14. Be2 {[%clk 0:52:43]}  a4 {[%clk 1:09:21]} 15. Nd2 {[%clk 0:52:56]}  Qa5 {[%clk 1:04:17]}
16. O-O {[%clk 0:48:38]}  Nd4 {[%clk 0:52:53]} 17. Bd1 {[%clk 0:37:50]}  a3 {[%clk 0:42:29]} 18. b4 {[%clk 0:29:05]}  Qxb4 {[%clk 0:38:15]}
19. Nd5 {[%clk 0:29:07]}  Qa5 {[%clk 0:28:40]} 20. Qg7 {[%clk 0:23:49]}  Rf8 {[%clk 0:28:47]} 21. Nb3 {[%clk 0:22:52]}  Nxb3 {[%clk 0:27:09]}
22. Bxb3 {[%clk 0:22:44]}  Nh5 {[%clk 0:25:01]} 23. Qd4 {[%clk 0:21:53]}  Bd7 {[%clk 0:19:51]} 24. e5 {[%clk 0:18:45]}  Ra6 {[%clk 0:15:01]}
25. exd6 {[%clk 0:16:35]}  Rxd6 {[%clk 0:15:08]} 26. Qe5 {[%clk 0:16:01]}  Qd8 {[%clk 0:14:31]} 27. Rfe1 {[%clk 0:15:11]}  Bc6 {[%clk 0:12:51]}
28. Nxe7 {[%clk 0:11:26]}  Re6 {[%clk 0:10:24]} 29. Nxc6 {[%clk 0:11:49]}  bxc6 {[%clk 0:09:50]} 30. Qc5 {[%clk 0:11:58]}  Qe7 {[%clk 0:05:53]}
31. Qa5 {[%clk 0:12:11]}  Nf4 {[%clk 0:03:41]} 32. Qa8+ {[%clk 0:10:09]}  Qd8 {[%clk 0:03:12]} 33. Qxc6+ {[%clk 0:11:01]}  Ke7 {[%clk 0:03:38]}
34. Qb7+ {[%clk 0:09:09]}  Qd7 {[%clk 0:03:10]} 35. Qb4+ {[%clk 0:09:12]}  Kf6 {[%clk 0:03:31]} 36. Qxf8 {[%clk 0:08:28]} 1-0

[Event "2026 European Womens Championship"]
[Site "Batumi, GE"]
[Date "2026.05.26"]
[Round "2"]
[White "Charkhalashvili, Inga"]
[Black "Diasamidze, Lulu"]
[Result "1-0"]
[Board "51"]
[TimeControl "5400+30"]
[WhiteFideId "13601431"]
[BlackFideId "13623818"]
[WhiteElo "2235"]
[BlackElo "1924"]
[WhiteTitle "WGM"]
[WhiteClock "0:07:52"]
[BlackClock "0:00:49"]
[Variant "Standard"]

1. Nf3 {[%clk 1:30:56]}  Nf6 {[%clk 1:30:28]} 2. b3 {[%clk 1:30:00]}  e6 {[%clk 1:30:17]} 3. Bb2 {[%clk 1:30:25]}  Be7 {[%clk 1:30:36]}
4. e3 {[%clk 1:30:16]}  O-O {[%clk 1:30:44]} 5. Be2 {[%clk 1:29:24]}  d5 {[%clk 1:30:26]} 6. O-O {[%clk 1:29:37]}  Nbd7 {[%clk 1:28:24]}
7. c4 {[%clk 1:29:17]}  c5 {[%clk 1:27:21]} 8. d4 {[%clk 1:26:49]}  b6 {[%clk 1:18:28]} 9. Nc3 {[%clk 1:24:23]}  Bb7 {[%clk 1:17:05]}
10. Rc1 {[%clk 1:21:50]}  Ne4 {[%clk 1:07:51]} 11. cxd5 {[%clk 1:09:39]}  Nxc3 {[%clk 1:07:08]} 12. Bxc3 {[%clk 1:06:31]}  Bxd5 {[%clk 1:06:38]}
13. Qc2 {[%clk 0:53:22]}  Rc8 {[%clk 0:48:51]} 14. Qb2 {[%clk 0:53:04]}  Bf6 {[%clk 0:47:06]} 15. Rfd1 {[%clk 0:52:24]}  Qe7 {[%clk 0:46:52]}
16. Qb1 {[%clk 0:47:28]}  cxd4 {[%clk 0:42:02]} 17. Nxd4 {[%clk 0:47:07]}  Nc5 {[%clk 0:38:01]} 18. f3 {[%clk 0:43:26]}  Bg5 {[%clk 0:33:39]}
19. Bd2 {[%clk 0:43:33]}  Qf6 {[%clk 0:29:02]} 20. b4 {[%clk 0:42:21]}  Nb7 {[%clk 0:25:11]} 21. Nb5 {[%clk 0:36:42]}  Rxc1 {[%clk 0:25:24]}
22. Qxc1 {[%clk 0:33:47]}  e5 {[%clk 0:11:02]} 23. e4 {[%clk 0:26:27]}  Bxd2 {[%clk 0:11:17]} 24. Rxd2 {[%clk 0:25:15]}  Be6 {[%clk 0:11:05]}
25. Nxa7 {[%clk 0:22:13]}  Qf4 {[%clk 0:10:58]} 26. Qc3 {[%clk 0:20:35]}  h5 {[%clk 0:10:13]} 27. Nc6 {[%clk 0:17:52]}  Kh7 {[%clk 0:09:58]}
28. Ba6 {[%clk 0:17:18]}  Rc8 {[%clk 0:05:45]} 29. Bxb7 {[%clk 0:15:23]}  Rc7 {[%clk 0:06:14]} 30. Ba8 {[%clk 0:14:34]}  Qh4 {[%clk 0:04:55]}
31. g3 {[%clk 0:13:45]}  Qg5 {[%clk 0:05:24]} 32. b5 {[%clk 0:11:23]}  h4 {[%clk 0:05:15]} 33. Kg2 {[%clk 0:10:38]}  f5 {[%clk 0:04:04]}
34. Re2 {[%clk 0:07:21]}  fxe4 {[%clk 0:02:00]} 35. Rxe4 {[%clk 0:07:32]}  h3+ {[%clk 0:02:10]} 36. Kf2 {[%clk 0:07:42]}  Rd7 {[%clk 0:00:42]}
37. Nxe5 {[%clk 0:07:35]}  Ra7 {[%clk 0:00:53]} 38. Bc6 {[%clk 0:07:17]}  Rxa2+ {[%clk 0:01:19]} 39. Re2 {[%clk 0:07:40]}  Ra4 {[%clk 0:00:49]}
40. Qc2+ {[%clk 0:07:52]} 1-0

[Event "2026 European Womens Championship"]
[Site "Batumi, GE"]
[Date "2026.05.26"]
[Round "2"]
[White "Kulon, Klaudia"]
[Black "Khairova, Evelina"]
[Result "1-0"]
[Board "52"]
[TimeControl "5400+30"]
[WhiteFideId "1131044"]
[BlackFideId "2845768"]
[WhiteElo "2377"]
[BlackElo "1880"]
[WhiteTitle "IM"]
[WhiteClock "0:47:11"]
[BlackClock "0:00:38"]
[Variant "Standard"]

1. c4 {[%clk 1:30:55]}  e6 {[%clk 1:28:32]} 2. Nc3 {[%clk 1:31:15]}  d5 {[%clk 1:27:13]} 3. d4 {[%clk 1:31:41]}  Nf6 {[%clk 1:26:48]}
4. cxd5 {[%clk 1:32:06]}  exd5 {[%clk 1:27:12]} 5. Bg5 {[%clk 1:32:29]}  Be7 {[%clk 1:27:31]} 6. e3 {[%clk 1:32:52]}  h6 {[%clk 1:20:13]}
7. Bh4 {[%clk 1:32:12]}  O-O {[%clk 1:19:17]} 8. Bd3 {[%clk 1:32:36]}  b6 {[%clk 1:17:42]} 9. Nge2 {[%clk 1:30:58]}  Bb7 {[%clk 1:13:38]}
10. f3 {[%clk 1:30:27]}  Nbd7 {[%clk 1:09:02]} 11. Bf2 {[%clk 1:28:48]}  c5 {[%clk 1:07:54]} 12. O-O {[%clk 1:28:36]}  a6 {[%clk 1:04:45]}
13. Rc1 {[%clk 1:20:27]}  c4 {[%clk 0:58:33]} 14. Bb1 {[%clk 1:20:38]}  b5 {[%clk 0:58:43]} 15. a3 {[%clk 1:19:08]}  Qb6 {[%clk 0:53:24]}
16. Ng3 {[%clk 1:14:58]}  g6 {[%clk 0:50:57]} 17. e4 {[%clk 1:14:59]}  dxe4 {[%clk 0:46:34]} 18. fxe4 {[%clk 1:15:11]}  a5 {[%clk 0:43:43]}
19. Kh1 {[%clk 1:10:16]}  b4 {[%clk 0:41:07]} 20. d5 {[%clk 1:09:46]}  Qa6 {[%clk 0:38:29]} 21. axb4 {[%clk 1:09:07]}  axb4 {[%clk 0:37:54]}
22. Nce2 {[%clk 1:08:56]}  Ng4 {[%clk 0:31:17]} 23. Bg1 {[%clk 1:04:06]}  Nge5 {[%clk 0:26:01]} 24. Be3 {[%clk 1:01:19]}  Kg7 {[%clk 0:19:33]}
25. Nd4 {[%clk 1:01:09]}  Bf6 {[%clk 0:12:22]} 26. Ngf5+ {[%clk 0:54:16]}  gxf5 {[%clk 0:11:52]} 27. Nxf5+ {[%clk 0:54:42]}  Kg6 {[%clk 0:11:38]}
28. Nxh6 {[%clk 0:53:18]}  Rh8 {[%clk 0:08:59]} 29. Ng4 {[%clk 0:53:27]}  Rh4 {[%clk 0:05:45]} 30. Rxf6+ {[%clk 0:53:01]}  Nxf6 {[%clk 0:03:54]}
31. Nxe5+ {[%clk 0:53:27]}  Kg7 {[%clk 0:03:39]} 32. Bg5 {[%clk 0:53:43]}  Rh7 {[%clk 0:03:22]} 33. Qd4 {[%clk 0:53:19]}  Rh5 {[%clk 0:02:52]}
34. Nf3 {[%clk 0:52:02]}  Rc8 {[%clk 0:01:10]} 35. h4 {[%clk 0:47:35]}  Qb5 {[%clk 0:00:38]} 36. Qxf6+ {[%clk 0:47:11]} 1-0

[Event "2026 European Womens Championship"]
[Site "Batumi, GE"]
[Date "2026.05.26"]
[Round "2"]
[White "Bulmaga, Irina"]
[Black "Muradyan, Anahit"]
[Result "1-0"]
[Board "53"]
[TimeControl "5400+30"]
[WhiteFideId "13903063"]
[BlackFideId "13314807"]
[WhiteElo "2361"]
[BlackElo "1977"]
[WhiteTitle "IM"]
[WhiteClock "0:14:30"]
[BlackClock "0:03:03"]
[Variant "Standard"]

1. e4 {[%clk 1:30:55]}  c5 {[%clk 1:30:54]} 2. Nf3 {[%clk 1:31:19]}  a6 {[%clk 1:31:17]} 3. c3 {[%clk 1:31:35]}  d5 {[%clk 1:31:41]}
4. exd5 {[%clk 1:31:46]}  Qxd5 {[%clk 1:32:04]} 5. d4 {[%clk 1:32:07]}  e6 {[%clk 1:31:46]} 6. Be3 {[%clk 1:29:47]}  cxd4 {[%clk 1:29:02]}
7. cxd4 {[%clk 1:29:23]}  Nf6 {[%clk 1:27:55]} 8. Nc3 {[%clk 1:29:17]}  Qa5 {[%clk 1:26:45]} 9. Bd3 {[%clk 1:28:44]}  Nc6 {[%clk 1:25:55]}
10. O-O {[%clk 1:22:33]}  Nb4 {[%clk 1:22:44]} 11. Be2 {[%clk 1:10:55]}  Bd6 {[%clk 1:19:07]} 12. Ne5 {[%clk 1:03:25]}  Bxe5 {[%clk 1:08:25]}
13. dxe5 {[%clk 1:03:44]}  Qxe5 {[%clk 1:07:43]} 14. Qa4+ {[%clk 1:00:04]}  Nc6 {[%clk 1:07:51]} 15. Qa3 {[%clk 0:52:53]}  Qa5 {[%clk 0:55:01]}
16. Qd6 {[%clk 0:52:39]}  Qe5 {[%clk 0:50:23]} 17. Qa3 {[%clk 0:53:00]}  Qa5 {[%clk 0:49:46]} 18. Qb3 {[%clk 0:43:28]}  O-O {[%clk 0:48:43]}
19. Rad1 {[%clk 0:38:28]}  b5 {[%clk 0:41:13]} 20. Bf3 {[%clk 0:35:23]}  Bb7 {[%clk 0:41:01]} 21. Bg5 {[%clk 0:32:32]}  b4 {[%clk 0:35:48]}
22. Bxf6 {[%clk 0:31:15]}  gxf6 {[%clk 0:36:00]} 23. Ne4 {[%clk 0:29:05]}  Qe5 {[%clk 0:27:03]} 24. Qe3 {[%clk 0:24:58]}  Kg7 {[%clk 0:22:57]}
25. Nd6 {[%clk 0:23:32]}  Qxb2 {[%clk 0:09:46]} 26. Nxb7 {[%clk 0:23:37]}  Ne5 {[%clk 0:10:12]} 27. Be4 {[%clk 0:21:02]}  Qxa2 {[%clk 0:07:21]}
28. Qg3+ {[%clk 0:20:21]}  Ng6 {[%clk 0:07:38]} 29. h4 {[%clk 0:20:35]}  f5 {[%clk 0:05:33]} 30. Bb1 {[%clk 0:19:04]}  Qe2 {[%clk 0:05:02]}
31. Nd6 {[%clk 0:13:16]}  Rad8 {[%clk 0:04:43]} 32. Bd3 {[%clk 0:08:34]}  Qh5 {[%clk 0:04:05]} 33. Bxa6 {[%clk 0:08:31]}  Qxh4 {[%clk 0:03:36]}
34. Qe3 {[%clk 0:06:38]}  f4 {[%clk 0:03:04]} 35. Qd4+ {[%clk 0:06:39]}  Qf6 {[%clk 0:03:24]} 36. Qxf6+ {[%clk 0:04:23]}  Kxf6 {[%clk 0:03:52]}
37. Ne4+ {[%clk 0:04:10]}  Ke7 {[%clk 0:04:18]} 38. Rc1 {[%clk 0:03:48]}  Rd7 {[%clk 0:03:34]} 39. Nc5 {[%clk 0:03:20]}  Rc7 {[%clk 0:03:54]}
40. Nb3 {[%clk 0:02:08]}  Ra7 {[%clk 0:02:21]} 41. Bb5 {[%clk 0:01:31]}  Ne5 {[%clk 0:01:13]} 42. Rfe1 {[%clk 0:30:10]}  Kf6 {[%clk 0:26:02]}
43. Rc5 {[%clk 0:28:53]}  Ng6 {[%clk 0:23:02]} 44. Nd4 {[%clk 0:27:35]}  Rg8 {[%clk 0:21:34]} 45. Kf1 {[%clk 0:22:49]}  Nh4 {[%clk 0:17:07]}
46. Bc6 {[%clk 0:23:10]}  Rc8 {[%clk 0:16:41]} 47. Rb5 {[%clk 0:22:42]}  Ng6 {[%clk 0:15:36]} 48. Rxb4 {[%clk 0:19:36]}  Ne5 {[%clk 0:15:02]}
49. Be4 {[%clk 0:19:43]}  Ra2 {[%clk 0:15:20]} 50. Bb1 {[%clk 0:18:09]}  Ra3 {[%clk 0:13:56]} 51. Nb5 {[%clk 0:16:55]}  Nd3 {[%clk 0:12:46]}
52. Bxd3 {[%clk 0:16:53]}  Rxd3 {[%clk 0:13:13]} 53. Rxf4+ {[%clk 0:17:16]}  Ke7 {[%clk 0:13:40]} 54. Nd4 {[%clk 0:17:18]}  Rc5 {[%clk 0:12:18]}
55. Nf5+ {[%clk 0:15:27]}  Kf6 {[%clk 0:11:40]} 56. Nd6+ {[%clk 0:14:19]}  Kg5 {[%clk 0:11:50]} 57. Ne4+ {[%clk 0:14:41]}  Kxf4 {[%clk 0:12:16]}
58. Nxc5 {[%clk 0:15:07]}  Rd5 {[%clk 0:12:43]} 59. Ne4 {[%clk 0:14:59]}  h5 {[%clk 0:12:32]} 60. g3+ {[%clk 0:14:37]}  Kf5 {[%clk 0:12:48]}
61. Kg2 {[%clk 0:14:43]}  Rd4 {[%clk 0:12:54]} 62. Kf3 {[%clk 0:14:20]}  f6 {[%clk 0:12:08]} 63. Nc5 {[%clk 0:13:28]}  e5 {[%clk 0:12:33]}
64. Ne4 {[%clk 0:13:33]}  Rd3+ {[%clk 0:11:34]} 65. Re3 {[%clk 0:12:24]}  Rd4 {[%clk 0:11:59]} 66. Re2 {[%clk 0:12:49]}  Rb4 {[%clk 0:11:50]}
67. Nd6+ {[%clk 0:12:29]}  Ke6 {[%clk 0:11:28]} 68. Ne4 {[%clk 0:12:57]}  Kf5 {[%clk 0:11:07]} 69. Nc3 {[%clk 0:12:35]}  h4 {[%clk 0:10:34]}
70. Nd5 {[%clk 0:13:02]}  Rd4 {[%clk 0:08:58]} 71. Ne3+ {[%clk 0:13:24]}  Kg5 {[%clk 0:09:11]} 72. g4 {[%clk 0:13:44]}  Ra4 {[%clk 0:06:46]}
73. Rc2 {[%clk 0:13:58]}  Rd4 {[%clk 0:04:57]} 74. Rc8 {[%clk 0:14:05]}  e4+ {[%clk 0:02:49]} 75. Kg2 {[%clk 0:14:19]}  Kf4 {[%clk 0:03:03]}
76. Rc5 {[%clk 0:14:30]} 1-0

[Event "2026 European Womens Championship"]
[Site "Batumi, GE"]
[Date "2026.05.26"]
[Round "2"]
[White "Gvetadze, Sofio"]
[Black "Radikovic, Anamarija"]
[Result "1-0"]
[Board "54"]
[TimeControl "5400+30"]
[WhiteFideId "13601440"]
[BlackFideId "14546264"]
[WhiteElo "2311"]
[BlackElo "1974"]
[WhiteTitle "IM"]
[BlackTitle "WFM"]
[WhiteClock "0:17:14"]
[BlackClock "0:06:25"]
[Variant "Standard"]

1. e4 {[%clk 1:30:57]}  c5 {[%clk 1:30:55]} 2. Nf3 {[%clk 1:31:18]}  d6 {[%clk 1:31:20]} 3. d4 {[%clk 1:31:21]}  cxd4 {[%clk 1:31:45]}
4. Nxd4 {[%clk 1:31:46]}  Nf6 {[%clk 1:32:08]} 5. Nc3 {[%clk 1:31:53]}  a6 {[%clk 1:32:32]} 6. Be2 {[%clk 1:32:11]}  e5 {[%clk 1:32:50]}
7. Nb3 {[%clk 1:32:28]}  Be7 {[%clk 1:32:56]} 8. O-O {[%clk 1:30:44]}  O-O {[%clk 1:33:00]} 9. Be3 {[%clk 1:28:01]}  Be6 {[%clk 1:32:00]}
10. Bf3 {[%clk 1:27:51]}  Nbd7 {[%clk 1:29:59]} 11. a4 {[%clk 1:24:05]}  b6 {[%clk 1:21:33]} 12. Re1 {[%clk 1:21:09]}  Rc8 {[%clk 1:21:21]}
13. h3 {[%clk 1:21:06]}  h6 {[%clk 1:18:42]} 14. Re2 {[%clk 1:18:37]}  Qc7 {[%clk 1:16:35]} 15. Rd2 {[%clk 1:17:51]}  Qb8 {[%clk 1:14:47]}
16. Nc1 {[%clk 0:56:15]}  Nc5 {[%clk 0:57:05]} 17. N1e2 {[%clk 0:54:17]}  Rc7 {[%clk 0:56:24]} 18. Ng3 {[%clk 0:53:55]}  Rd8 {[%clk 0:42:34]}
19. Nd5 {[%clk 0:50:51]}  Nxd5 {[%clk 0:37:18]} 20. exd5 {[%clk 0:50:51]}  Bd7 {[%clk 0:37:35]} 21. Bg4 {[%clk 0:50:03]}  Be8 {[%clk 0:33:58]}
22. b3 {[%clk 0:48:12]}  Bf8 {[%clk 0:33:45]} 23. f4 {[%clk 0:34:47]}  exf4 {[%clk 0:27:01]} 24. Bxf4 {[%clk 0:35:10]}  g6 {[%clk 0:27:25]}
25. Be3 {[%clk 0:35:15]}  h5 {[%clk 0:22:44]} 26. Bxh5 {[%clk 0:30:11]}  Bg7 {[%clk 0:18:52]} 27. Bd4 {[%clk 0:19:43]}  b5 {[%clk 0:16:49]}
28. axb5 {[%clk 0:19:47]}  axb5 {[%clk 0:17:00]} 29. Bf3 {[%clk 0:19:49]}  b4 {[%clk 0:15:44]} 30. Bxg7 {[%clk 0:19:23]}  Kxg7 {[%clk 0:16:08]}
31. Rd4 {[%clk 0:19:10]}  Qb6 {[%clk 0:13:08]} 32. Kh1 {[%clk 0:17:35]}  Rdc8 {[%clk 0:11:57]} 33. Qd2 {[%clk 0:17:08]}  Na6 {[%clk 0:10:55]}
34. Rh4 {[%clk 0:16:39]}  Rxc2 {[%clk 0:06:00]} 35. Qh6+ {[%clk 0:17:03]}  Kf6 {[%clk 0:06:25]} 36. Re1 {[%clk 0:17:14]} 1-0

[Event "2026 European Womens Championship"]
[Site "Batumi, GE"]
[Date "2026.05.26"]
[Round "2"]
[White "Hrebenshchykova, Yelyzaveta"]
[Black "Esadze, Tamari"]
[Result "1-0"]
[Board "55"]
[TimeControl "5400+30"]
[WhiteFideId "14159899"]
[BlackFideId "13611186"]
[WhiteElo "2309"]
[BlackElo "1974"]
[WhiteTitle "WGM"]
[WhiteClock "0:02:23"]
[BlackClock "0:01:38"]
[Variant "Standard"]

1. e4 {[%clk 1:30:57]}  c5 {[%clk 1:30:57]} 2. Nf3 {[%clk 1:31:24]}  d6 {[%clk 1:31:24]} 3. d4 {[%clk 1:31:50]}  cxd4 {[%clk 1:31:49]}
4. Nxd4 {[%clk 1:32:18]}  Nf6 {[%clk 1:32:13]} 5. Nc3 {[%clk 1:32:44]}  a6 {[%clk 1:32:41]} 6. Qf3 {[%clk 1:33:09]}  e6 {[%clk 1:28:07]}
7. g4 {[%clk 1:33:12]}  Nc6 {[%clk 1:20:21]} 8. Nxc6 {[%clk 0:59:55]}  bxc6 {[%clk 1:20:49]} 9. g5 {[%clk 1:00:21]}  Nd7 {[%clk 1:20:44]}
10. Bf4 {[%clk 0:58:48]}  e5 {[%clk 1:12:44]} 11. Be3 {[%clk 0:56:50]}  Nb6 {[%clk 1:12:17]} 12. Bxb6 {[%clk 0:47:53]}  Qxb6 {[%clk 1:12:45]}
13. Bc4 {[%clk 0:48:17]}  Qc7 {[%clk 1:04:33]} 14. h4 {[%clk 0:45:16]}  Qe7 {[%clk 0:56:55]} 15. O-O-O {[%clk 0:41:42]}  Be6 {[%clk 0:57:05]}
16. Qd3 {[%clk 0:40:16]}  Qb7 {[%clk 0:34:57]} 17. f4 {[%clk 0:36:41]}  exf4 {[%clk 0:34:14]} 18. Rhf1 {[%clk 0:36:35]}  Be7 {[%clk 0:32:57]}
19. Bxe6 {[%clk 0:22:17]}  fxe6 {[%clk 0:33:25]} 20. Rxf4 {[%clk 0:22:43]}  Rf8 {[%clk 0:23:00]} 21. Rxf8+ {[%clk 0:20:21]}  Bxf8 {[%clk 0:23:14]}
22. e5 {[%clk 0:10:13]}  O-O-O {[%clk 0:22:06]} 23. exd6 {[%clk 0:06:31]}  Bxd6 {[%clk 0:20:30]} 24. Qxh7 {[%clk 0:05:15]}  Bf4+ {[%clk 0:17:34]}
25. Kb1 {[%clk 0:05:43]}  Rxd1+ {[%clk 0:17:59]} 26. Nxd1 {[%clk 0:06:11]}  Qd7 {[%clk 0:17:43]} 27. Nc3 {[%clk 0:06:36]}  Qd4 {[%clk 0:11:01]}
28. a3 {[%clk 0:06:35]}  Kb7 {[%clk 0:09:48]} 29. Qg6 {[%clk 0:02:58]}  Bc7 {[%clk 0:04:51]} 30. h5 {[%clk 0:02:10]}  Be5 {[%clk 0:02:30]}
31. Qf7+ {[%clk 0:01:32]}  Kb6 {[%clk 0:01:43]} 32. h6 {[%clk 0:00:42]}  Qg1+ {[%clk 0:00:49]} 33. Ka2 {[%clk 0:01:09]}  gxh6 {[%clk 0:01:16]}
34. Na4+ {[%clk 0:00:35]}  Ka5 {[%clk 0:00:58]} 35. Qxe6 {[%clk 0:00:42]}  Qd4 {[%clk 0:00:32]} 36. gxh6 {[%clk 0:01:07]}  Qd5+ {[%clk 0:00:38]}
37. Qxd5+ {[%clk 0:01:33]}  cxd5 {[%clk 0:01:07]} 38. Nc5 {[%clk 0:01:50]}  Kb5 {[%clk 0:01:22]} 39. Nd3 {[%clk 0:01:47]}  Bf6 {[%clk 0:01:22]}
40. h7 {[%clk 0:01:58]}  Kc6 {[%clk 0:01:38]} 41. Nf4 {[%clk 0:02:23]} 1-0

[Event "2026 European Womens Championship"]
[Site "Batumi, GE"]
[Date "2026.05.26"]
[Round "2"]
[White "Venskaya, Nika"]
[Black "Arakhamia-Grant, Ketevan"]
[Result "1-0"]
[Board "56"]
[TimeControl "5400+30"]
[WhiteFideId "13523503"]
[BlackFideId "13600168"]
[WhiteElo "1937"]
[BlackElo "2306"]
[WhiteTitle "WCM"]
[BlackTitle "GM"]
[WhiteClock "0:12:17"]
[BlackClock "0:00:44"]
[Variant "Standard"]

1. d4 {[%clk 1:30:59]}  d5 {[%clk 1:30:50]} 2. c4 {[%clk 1:31:09]}  e6 {[%clk 1:31:10]} 3. Nf3 {[%clk 1:31:34]}  Nf6 {[%clk 1:31:11]}
4. g3 {[%clk 1:31:33]}  dxc4 {[%clk 1:31:08]} 5. Bg2 {[%clk 1:31:39]}  Nc6 {[%clk 1:30:52]} 6. O-O {[%clk 1:30:35]}  Rb8 {[%clk 1:29:49]}
7. e3 {[%clk 1:27:23]}  b5 {[%clk 1:23:53]} 8. Nfd2 {[%clk 1:21:30]}  Bb7 {[%clk 1:23:28]} 9. b3 {[%clk 1:20:48]}  cxb3 {[%clk 1:20:33]}
10. axb3 {[%clk 1:20:03]}  Be7 {[%clk 1:19:06]} 11. Bb2 {[%clk 1:13:04]}  O-O {[%clk 1:17:48]} 12. Qe2 {[%clk 1:11:13]}  b4 {[%clk 1:01:58]}
13. Rc1 {[%clk 1:10:04]}  Nd5 {[%clk 1:01:15]} 14. Ne4 {[%clk 1:08:11]}  Ba8 {[%clk 0:36:28]} 15. Nbd2 {[%clk 1:06:25]}  Re8 {[%clk 0:36:14]}
16. Nc5 {[%clk 1:02:23]}  Bf8 {[%clk 0:34:00]} 17. Nd3 {[%clk 0:53:25]}  g6 {[%clk 0:22:03]} 18. Nf3 {[%clk 0:46:49]}  Bg7 {[%clk 0:21:23]}
19. Rc5 {[%clk 0:40:33]}  Rb6 {[%clk 0:18:27]} 20. Nd2 {[%clk 0:37:02]}  Qb8 {[%clk 0:14:02]} 21. Qf1 {[%clk 0:29:29]}  Rb5 {[%clk 0:12:46]}
22. Rc2 {[%clk 0:28:43]}  Ra5 {[%clk 0:08:02]} 23. Rac1 {[%clk 0:27:15]}  Nce7 {[%clk 0:08:21]} 24. Nc4 {[%clk 0:24:43]}  Ra2 {[%clk 0:08:30]}
25. Qe1 {[%clk 0:25:06]}  Rd8 {[%clk 0:06:24]} 26. e4 {[%clk 0:20:12]}  Nc3 {[%clk 0:06:06]} 27. Nxb4 {[%clk 0:20:03]}  Qxb4 {[%clk 0:05:32]}
28. Bxc3 {[%clk 0:11:46]}  Qxb3 {[%clk 0:05:50]} 29. Ne3 {[%clk 0:11:48]}  Rxc2 {[%clk 0:05:41]} 30. Rxc2 {[%clk 0:12:13]}  Qa4 {[%clk 0:03:36]}
31. h4 {[%clk 0:09:40]}  h5 {[%clk 0:03:25]} 32. Rc1 {[%clk 0:08:28]}  Qe8 {[%clk 0:01:13]} 33. Rd1 {[%clk 0:08:05]}  Qc6 {[%clk 0:00:47]}
34. Bb4 {[%clk 0:07:52]}  Qe8 {[%clk 0:00:57]} 35. Bc5 {[%clk 0:07:22]}  Nc6 {[%clk 0:00:57]} 36. d5 {[%clk 0:07:13]}  exd5 {[%clk 0:01:12]}
37. Nxd5 {[%clk 0:06:37]}  Qe5 {[%clk 0:00:47]} 38. f4 {[%clk 0:04:39]}  Qb2 {[%clk 0:00:56]} 39. e5 {[%clk 0:03:29]}  Kh7 {[%clk 0:00:34]}
40. Bf2 {[%clk 0:02:06]}  Qb3 {[%clk 0:00:33]} 41. Rb1 {[%clk 0:01:27]}  Qa2 {[%clk 0:06:54]} 42. Nc3 {[%clk 0:26:36]}  Qc4 {[%clk 0:05:49]}
43. Ne4 {[%clk 0:25:31]}  Ne7 {[%clk 0:00:37]} 44. Rc1 {[%clk 0:24:13]}  Qa4 {[%clk 0:00:36]} 45. Ng5+ {[%clk 0:21:57]}  Kg8 {[%clk 0:01:01]}
46. Bxa8 {[%clk 0:21:55]}  Rxa8 {[%clk 0:01:25]} 47. Rxc7 {[%clk 0:22:23]}  Nf5 {[%clk 0:00:35]} 48. Nxf7 {[%clk 0:18:51]}  a5 {[%clk 0:00:48]}
49. Nd6 {[%clk 0:15:27]}  Rd8 {[%clk 0:00:36]} 50. Qd2 {[%clk 0:14:30]}  Qb3 {[%clk 0:00:38]} 51. Rc3 {[%clk 0:13:54]}  Qb1+ {[%clk 0:00:39]}
52. Rc1 {[%clk 0:14:15]}  Qb3 {[%clk 0:00:38]} 53. Qxa5 {[%clk 0:14:19]}  Rxd6 {[%clk 0:00:34]} 54. exd6 {[%clk 0:13:29]}  Bd4 {[%clk 0:00:44]}
55. Qa8+ {[%clk 0:12:41]}  Kh7 {[%clk 0:00:56]} 56. Rc7+ {[%clk 0:12:05]}  Kh6 {[%clk 0:00:39]} 57. Qf8+ {[%clk 0:11:09]}  Bg7 {[%clk 0:00:44]}
58. Rxg7 {[%clk 0:12:17]} 1-0

[Event "2026 European Womens Championship"]
[Site "Batumi, GE"]
[Date "2026.05.26"]
[Round "2"]
[White "Jarocka, Liwia"]
[Black "Avelino, Camila Biscaya"]
[Result "1-0"]
[Board "57"]
[TimeControl "5400+30"]
[WhiteFideId "21807558"]
[BlackFideId "1938975"]
[WhiteElo "2288"]
[BlackElo "1937"]
[WhiteTitle "FM"]
[BlackTitle "WFM"]
[WhiteClock "1:00:22"]
[BlackClock "0:08:23"]
[Variant "Standard"]

1. e4 {[%clk 1:30:58]}  c5 {[%clk 1:27:27]} 2. Nf3 {[%clk 1:31:13]}  d6 {[%clk 1:27:33]} 3. Bc4 {[%clk 1:31:14]}  Nf6 {[%clk 1:22:10]}
4. d3 {[%clk 1:31:23]}  Nc6 {[%clk 1:18:48]} 5. O-O {[%clk 1:30:36]}  e6 {[%clk 1:16:19]} 6. a4 {[%clk 1:30:05]}  Be7 {[%clk 1:12:52]}
7. Bb3 {[%clk 1:29:41]}  b6 {[%clk 1:08:31]} 8. c3 {[%clk 1:29:43]}  Bb7 {[%clk 1:08:14]} 9. Re1 {[%clk 1:29:59]}  Qc7 {[%clk 0:59:49]}
10. Nbd2 {[%clk 1:30:02]}  O-O {[%clk 0:53:27]} 11. Nf1 {[%clk 1:28:58]}  a6 {[%clk 0:49:04]} 12. h3 {[%clk 1:28:47]}  b5 {[%clk 0:46:21]}
13. Bc2 {[%clk 1:27:44]}  b4 {[%clk 0:36:58]} 14. Bd2 {[%clk 1:10:25]}  d5 {[%clk 0:25:56]} 15. e5 {[%clk 1:06:48]}  Nd7 {[%clk 0:26:19]}
16. d4 {[%clk 1:05:48]}  bxc3 {[%clk 0:26:38]} 17. bxc3 {[%clk 1:06:09]}  cxd4 {[%clk 0:26:55]} 18. cxd4 {[%clk 1:06:31]}  Nb4 {[%clk 0:27:17]}
19. Bxh7+ {[%clk 1:04:35]}  Kxh7 {[%clk 0:26:01]} 20. Bxb4 {[%clk 1:00:25]}  Nb6 {[%clk 0:08:00]} 21. Bxe7 {[%clk 0:59:58]}  Qxe7 {[%clk 0:08:23]}
22. Qb1+ {[%clk 1:00:22]} 1-0